bitfinex-derivatives/quotes_SOLF0:USTF0_20250325
["timestamp","ask_amount","ask_price","bid_price","bid_amount"]
[1742903681127,7.0243,142.35,142.32,7.0254]
[1742903681423,38.83369934,142.36,142.32,7.0254]
[1742903681824,38.83369934,142.36,142.26,14.0569]
[1742903682024,0.05259263,142.35,142.33,0.05306902]
[1742903682214,0.05259263,142.35,142.33,7.0247]
[1742903682418,0.05259263,142.35,142.33,7.06905111]
[1742903682923,0.05259263,142.35,142.33,0.04435111]
[1742903683226,7.07669263,142.35,142.33,0.04435111]
[1742903684235,0.05259263,142.35,142.33,7.06915111]
[1742903684722,7.07699263,142.35,142.33,0.04435111]
[1742903685527,7.07699263,142.35,142.33,7.06925111]
[1742903688128,0.05259263,142.35,142.33,7.06925111]
[1742903689133,0.05259263,142.35,142.34,7.0245]
[1742903689327,0.05259263,142.35,142.33,0.04435111]
[1742903689826,0.05259263,142.35,142.33,7.06905111]
[1742903693227,8.38439399,142.43,142.33,0.04435111]
[1742903693437,8.38439399,142.43,142.29,14.0536]
[1742903693730,7.0221,142.39,142.36,7.0233]
[1742903694332,7.06951071,142.39,142.36,7.07702636]
[1742903694932,7.06951071,142.39,142.36,0.05372636]
[1742903696033,7.0226,142.38,142.36,0.05372636]
[1742903700438,7.0231,142.37,142.36,0.05372636]
[1742903701833,7.0247,142.34,142.28,25.06]
[1742903702038,8.38439399,142.4,142.27,25.06]
[1742903702538,8.38439399,142.4,142.31,7.026]
[1742903703038,0.04446618,142.37,142.34,0.0472691]
[1742903704544,7.06776618,142.37,142.34,7.0714691]
[1742903705843,7.0236,142.36,142.34,0.0472691]
[1742903706846,7.024,142.35,142.34,0.0472691]
[1742903712350,7.0261,142.31,142.28,7.0271]
[1742903712551,7.0261,142.31,142.25,257.04]
[1742903713352,7.0261,142.31,142.29,7.0268]
[1742903713552,7.07489981,142.31,142.29,7.0268]
[1742903715156,0.04879981,142.31,142.29,7.0268]
[1742903715755,0.04879981,142.31,142.3,7.0265]
[1742903716356,7.0233,142.37,142.27,25.08909378]
[1742903716655,9.70842483,142.38,142.27,33.42439399]
[1742903716855,9.70842483,142.38,142.28,14.0548]
[1742903716856,16.73122483,142.38,142.28,14.0548]
[1742903717559,0.0444097,142.34,142.32,0.04806569]
[1742903718449,0.0444097,142.34,142.33,7.025]
[1742903720758,18.75631754,142.4,142.37,7.023]
[1742903721262,18.75631754,142.4,142.3,25.04]
[1742903721660,7.0224,142.39,142.36,7.0232]
[1742903721857,7.06963205,142.39,142.37,0.04979478]
[1742903722359,7.06963205,142.39,142.37,7.07259478]
[1742903722760,7.06963205,142.39,142.37,0.04979478]
[1742903724264,7.0226,142.38,142.37,0.04979478]
[1742903727269,7.0237,142.36,142.28,14.0548]
[1742903727568,8.38439399,142.37,142.26,25.04]
[1742903727762,7.0256,142.32,142.29,7.0267]
[1742903728469,7.07136462,142.32,142.29,7.07349746]
[1742903730865,7.0262,142.31,142.29,7.07349746]
[1742903733171,7.07156462,142.32,142.29,7.07349746]
[1742903733370,7.07156462,142.32,142.3,7.0264]
[1742903737775,0.04576462,142.32,142.31,7.026]
[1742903746878,0.04576462,142.32,142.29,0.04679746]
[1742903747084,0.04576462,142.32,142.3,7.0263]
[1742903748786,7.07136462,142.32,142.29,7.07349746]
[1742903748979,7.07136462,142.32,142.29,0.04679746]
[1742903749179,0.04576462,142.32,142.29,0.04679746]
[1742903749486,7.0265,142.3,142.29,0.04679746]
[1742903752877,7.0285,142.26,142.23,7.0297]
[1742903753785,8.38439399,142.31,142.24,7.0294]
[1742903753985,0.04842111,142.26,142.24,7.0294]
[1742903754181,7.0278,142.28,142.25,7.029]
[1742903754386,0.05053797,142.26,142.25,7.029]
[1742903760687,38.83369934,142.36,142.31,7.0257]
[1742903760994,38.83369934,142.36,142.24,14.059]
[1742903761291,38.83369934,142.36,142.31,7.0257]
[1742903761694,7.0248,142.34,142.31,7.0257]
[1742903761889,7.0248,142.34,142.32,0.05209551]
[1742903762895,7.0248,142.34,142.32,7.07759551]
[1742903763504,7.07761644,142.35,142.32,7.07759551]
[1742903764305,0.05341644,142.35,142.32,0.05209551]
[1742903766301,7.025,142.33,142.32,0.05209551]
[1742903767705,7.0248,142.34,142.32,0.05209551]
[1742903768306,7.025,142.33,142.32,0.05209551]
[1742903768508,0.05341644,142.35,142.32,0.05209551]
[1742903769009,7.0248,142.34,142.32,0.05209551]
[1742903770210,7.025,142.33,142.32,0.05209551]
[1742903770711,7.0248,142.34,142.32,0.05209551]
[1742903772109,7.07761644,142.35,142.32,7.07729551]
[1742903776108,0.05341644,142.35,142.32,0.05209551]
[1742903776313,8.38439399,142.34,142.22,25.04]
[1742903776501,0.05341644,142.35,142.22,25.04]
[1742903776702,7.0258,142.32,142.28,7.0272]
[1742903777211,7.026,142.31,142.27,7.0277]
[1742903777413,7.07615048,142.31,142.29,0.05254222]
[1742903778906,0.05015048,142.31,142.29,0.05254222]
[1742903780013,0.05015048,142.31,142.3,7.0265]
[1742903788115,7.0231,142.37,142.35,7.0239]
[1742903789416,7.07641798,142.37,142.35,7.07523653]
[1742903789915,0.05331798,142.37,142.35,7.07523653]
[1742903790619,0.05331798,142.37,142.36,7.0236]
[1742903797320,0.05331798,142.37,142.35,7.07513653]
[1742903797624,0.05331798,142.37,142.35,0.05133653]
[1742903798217,0.05331798,142.37,142.36,7.0236]
[1742903801023,0.05331798,142.37,142.35,0.05133653]
[1742903801924,0.05331798,142.37,142.35,7.07533653]
[1742903802124,0.05331798,142.37,142.35,0.05133653]
[1742903802319,0.05331798,142.37,142.36,7.0236]
[1742903808222,1.798e-05,142.37,142.36,7.0236]
[1742903808427,47.21809333,142.47,142.35,14.09943653]
[1742903808631,47.21809333,142.47,142.35,14.0481]
[1742903809027,7.0205,142.43,142.4,7.0213]
[1742903809427,7.07420554,142.43,142.4,7.0669092]
[1742903809930,7.07420554,142.43,142.4,0.0456092]
[1742903810929,7.07420554,142.43,142.4,7.0671092]
[1742903812820,7.0207,142.42,142.4,0.0456092]
[1742903813531,7.0211,142.41,142.4,0.0456092]
[1742903815737,8.38439399,142.42,142.31,14.0513]
[1742903815940,8.38439399,142.42,142.31,25.02]
[1742903816936,0.04937925,142.38,142.35,0.05098844]
[1742903817142,0.04937925,142.38,142.36,7.0232]
[1742903818743,7.07217925,142.38,142.35,7.07458844]
[1742903818942,0.04937925,142.38,142.35,7.07458844]
[1742903819336,0.04937925,142.38,142.35,0.05098844]
[1742903819942,0.04937925,142.38,142.36,7.0235]
[1742903820742,7.07207925,142.38,142.36,7.0235]
[1742903822342,0.04937925,142.38,142.36,7.0235]
[1742903823446,7.07197925,142.38,142.36,7.0235]
[1742903824251,7.07197925,142.38,142.35,7.07478844]
[1742903824450,7.0231,142.37,142.35,7.07478844]
[1742903824651,0.04937925,142.38,142.35,0.05098844]
[1742903825748,7.0233,142.37,142.35,7.07498844]
[1742903826150,7.07217925,142.38,142.35,7.07498844]
[1742903826550,0.04937925,142.38,142.35,0.05098844]
[1742903827049,8.43377324,142.38,142.35,0.05098844]
[1742903827249,8.43377324,142.38,142.27,25.02]
[1742903827449,8.38439399,142.34,142.24,231.74]
[1742903828149,7.0273,142.29,142.25,7.0285]
[1742903828448,7.0273,142.29,142.28,0.04717262]
[1742903828654,0.05080901,142.3,142.28,0.04717262]
[1742903828849,0.05080901,142.3,142.29,7.027]
[1742903834352,0.05080901,142.3,142.28,0.04717262]
[1742903834953,0.05080901,142.3,142.28,7.07467262]
[1742903835154,0.05080901,142.3,142.28,0.04717262]
[1742903836259,0.05080901,142.3,142.28,7.07457262]
[1742903837458,0.05080901,142.3,142.28,0.04717262]
[1742903838259,7.07750901,142.3,142.28,0.04717262]
[1742903840259,7.027,142.29,142.28,0.04717262]
[1742903842663,0.05080901,142.3,142.28,0.04717262]
[1742903843367,0.05080901,142.3,142.29,7.027]
[1742903848370,8.38439399,142.4,142.28,0.04717262]
[1742903848565,8.38439399,142.4,142.26,33.40439399]
[1742903848759,7.0233,142.37,142.34,7.0241]
[1742903849467,7.07015276,142.37,142.34,7.07050082]
[1742903851174,7.0236,142.36,142.34,0.04640082]
[1742903853670,7.024,142.35,142.34,0.04640082]
[1742903855873,7.0254,142.33,142.26,25.02]
[1742903856069,7.0254,142.33,142.3,7.0263]
[1742903856972,7.07620648,142.33,142.3,7.07421416]
[1742903857373,7.07620648,142.33,142.31,7.0259]
[1742903858273,0.05080648,142.33,142.31,7.0259]
[1742903858474,0.05080648,142.33,142.3,7.07421416]
[1742903858874,7.07610648,142.33,142.31,7.026]
[1742903859075,0.05080648,142.33,142.31,7.026]
[1742903859976,0.05080648,142.33,142.32,7.0255]
[1742903866984,0.05080648,142.33,142.3,0.04791416]
[1742903867182,7.07610648,142.33,142.3,0.04791416]
[1742903867584,7.07610648,142.33,142.3,7.07411416]
[1742903869483,7.07610648,142.33,142.31,7.026]
[1742903869683,0.05080648,142.33,142.31,7.026]
[1742903870082,7.07610648,142.33,142.3,7.07421416]
[1742903870882,7.0255,142.32,142.3,7.07421416]
[1742903871483,7.026,142.31,142.3,0.04791416]
[1742903872985,7.0258,142.32,142.3,0.04791416]
[1742903873386,7.0258,142.32,142.3,7.07441416]
[1742903873785,7.07610648,142.33,142.3,7.07441416]
[1742903874184,0.05080648,142.33,142.31,7.0258]
[1742903875387,0.05080648,142.33,142.32,7.0255]
[1742903876777,0.05080648,142.33,142.31,7.0258]
[1742903876978,0.05080648,142.33,142.3,0.04791416]
[1742903877378,0.05080648,142.33,142.32,7.0255]
[1742903882293,0.05080648,142.33,142.3,0.04791416]
[1742903882792,0.05080648,142.33,142.31,7.0258]
[1742903888597,7.07590648,142.33,142.3,7.07411416]
[1742903889498,7.07590648,142.33,142.31,7.026]
[1742903890694,0.05080648,142.33,142.31,7.026]
[1742903894602,7.07590648,142.33,142.31,7.026]
[1742903894802,7.07590648,142.33,142.3,7.07421416]
[1742903896102,7.0255,142.32,142.3,0.04791416]
[1742903896294,0.05080648,142.33,142.3,0.04791416]
[1742903896697,7.026,142.31,142.3,0.04791416]
[1742903897602,7.0258,142.32,142.3,0.04791416]
[1742903898404,7.0258,142.32,142.3,7.07441416]
[1742903899301,8.38439399,142.32,142.21,14.0612]
[1742903899506,52.88099934,142.36,142.19,19.10984305]
[1742903899507,8.38439399,142.28,142.19,19.10984305]
[1742903900004,7.0298,142.24,142.19,26.14144305]
[1742903900199,7.0298,142.24,142.19,7.0316]
[1742903900603,0.05097731,142.23,142.2,0.0474543]
[1742903900797,7.08097731,142.23,142.2,0.0474543]
[1742903901005,0.05097731,142.23,142.2,0.0474543]
[1742903902605,7.08107731,142.23,142.2,0.0474543]
[1742903902902,0.05097731,142.23,142.2,0.0474543]
[1742903903203,7.0308,142.22,142.2,0.0474543]
[1742903904208,7.031,142.21,142.2,0.0474543]
[1742903906806,0.05097731,142.23,142.2,0.0474543]
[1742903907513,7.08117731,142.23,142.2,7.0786543]
[1742903909307,0.05097731,142.23,142.2,0.0474543]
[1742903909703,7.08117731,142.23,142.2,7.0786543]
[1742903913710,0.05097731,142.23,142.2,0.0474543]
[1742903915318,0.05097731,142.23,142.22,7.0305]
[1742903923224,7.731e-05,142.23,142.22,7.0305]
[1742903923425,7.731e-05,142.23,142.22,32.0505]
[1742903926326,7.731e-05,142.23,142.22,7.0305]
[1742903929935,7.731e-05,142.23,142.22,32.0305]
[1742903931434,7.731e-05,142.23,142.22,25.0]
[1742903931826,7.731e-05,142.23,142.22,32.0305]
[1742903933425,7.731e-05,142.23,142.22,7.0305]
[1742903954750,7.731e-05,142.23,142.2,232.0074543]
[1742903954751,7.731e-05,142.23,142.21,7.0309]
[1742903955151,7.731e-05,142.23,142.2,232.0074543]
[1742903955457,7.731e-05,142.23,142.21,7.031]
[1742903955855,7.731e-05,142.23,142.2,232.0074543]
[1742903956454,7.731e-05,142.23,142.22,7.0305]
[1742903958856,7.03007731,142.23,142.21,7.0307]
[1742903964263,7.0305,142.22,142.2,239.0386543]
[1742903965463,7.031,142.21,142.2,0.0474543]
[1742903972771,7.0307,142.22,142.2,0.0474543]
[1742903973471,7.031,142.21,142.2,0.0474543]
[1742903975172,7.0307,142.22,142.2,0.0474543]
[1742903975470,7.0307,142.22,142.2,7.0788543]
[1742903976072,7.03037731,142.23,142.2,7.0788543]
[1742903976271,7.731e-05,142.23,142.2,0.0474543]
[1742903976777,7.0307,142.22,142.2,0.0474543]
[1742903978273,7.031,142.21,142.2,0.0474543]
[1742903978675,7.731e-05,142.23,142.2,0.0474543]
[1742903979674,7.031,142.21,142.2,0.0474543]
[1742903982478,7.0328,142.18,142.14,231.98]
[1742903982977,7.0328,142.18,142.15,7.0336]
[1742903983578,7.08581361,142.18,142.15,7.08114158]
[1742903984479,7.033,142.17,142.15,7.08114158]
[1742903987584,7.08571361,142.18,142.16,7.0334]
[1742903987783,0.05301361,142.18,142.15,0.04754158]
[1742903989388,7.08571361,142.18,142.16,7.0332]
[1742903990586,7.08571361,142.18,142.15,7.08124158]
[1742903991086,7.08571361,142.18,142.16,7.0334]
[1742903994589,7.033,142.17,142.15,7.08124158]
[1742903994994,0.05301361,142.18,142.15,7.08124158]
[1742903995497,0.05301361,142.18,142.15,0.04754158]
[1742903996697,7.0333,142.17,142.15,0.04754158]
[1742903997296,7.0334,142.16,142.15,0.04754158]
[1742903997495,0.05301361,142.18,142.15,0.04754158]
[1742903999697,7.0333,142.17,142.15,0.04754158]
[1742903999990,0.05301361,142.18,142.15,0.04754158]
[1742904000392,7.0334,142.17,142.15,0.04754158]
[1742904000695,0.05301361,142.18,142.15,0.04754158]
[1742904000895,7.0334,142.16,142.15,0.04754158]
[1742904001998,7.0348,142.14,142.08,232.08]
[1742904002293,18.09281882,142.2,142.09,25.0]
[1742904002498,9.70842483,142.2,142.09,25.0]
[1742904003100,7.0339,142.16,142.13,7.0346]
[1742904003294,7.08356558,142.16,142.13,7.08007364]
[1742904003495,0.04966558,142.16,142.13,0.04547364]
[1742904003696,0.04966558,142.16,142.14,7.0342]
[1742904004093,0.04966558,142.16,142.13,0.04547364]
[1742904004600,7.08336558,142.16,142.13,7.08017364]
[1742904004989,7.0339,142.15,142.13,7.08017364]
[1742904005298,7.0339,142.15,142.13,0.04547364]
[1742904005692,7.08316558,142.16,142.13,7.08037364]
[1742904006091,0.04966558,142.16,142.13,7.08037364]
[1742904006290,0.04966558,142.16,142.14,7.0343]
[1742904006490,0.04966558,142.16,142.13,0.04547364]
[1742904006896,0.04966558,142.16,142.13,7.08017364]
[1742904007996,7.08316558,142.16,142.13,7.08017364]
[1742904011402,38.83369934,142.21,142.15,25.0]
[1742904011705,38.83369934,142.21,142.18,25.0]
[1742904012599,38.83369934,142.21,142.18,0.04753783]
[1742904012600,38.87907995,142.21,142.18,0.04753783]
[1742904013606,0.04538061,142.21,142.18,0.04753783]
[1742904014608,0.04538061,142.21,142.18,7.07993783]
[1742904014803,0.04538061,142.21,142.18,0.04753783]
[1742904015305,0.04538061,142.21,142.2,7.0315]
[1742904016003,38.83369934,142.28,142.18,25.04753783]
[1742904016004,38.83369934,142.28,142.24,7.0294]
[1742904016208,38.83369934,142.28,142.18,25.0]
[1742904016404,38.83369934,142.28,142.21,25.0]
[1742904016604,9.70842483,142.27,142.21,25.0]
[1742904017004,0.04440417,142.25,142.24,7.0295]
[1742904017903,9.70842483,142.27,142.26,7.0285]
[1742904018910,9.70842483,142.27,142.23,0.05106757]
[1742904019107,7.0288,142.26,142.23,0.05106757]
[1742904019305,9.70842483,142.27,142.19,7.0317]
[1742904019306,8.38439399,142.24,142.19,7.0317]
[1742904020015,7.0307,142.22,142.18,7.0322]
[1742904020509,0.04785315,142.21,142.19,7.08361677]
[1742904020715,7.0302,142.23,142.19,7.08361677]
[1742904020911,0.04806192,142.21,142.19,7.08361677]
[1742904023909,6.192e-05,142.21,142.2,7.0315]
[1742904028812,1.22358567,142.34,142.26,7.0284]
[1742904029012,7.0274,142.29,142.26,7.0284]
[1742904029915,7.07749804,142.29,142.26,7.07309296]
[1742904030111,7.0275,142.28,142.26,0.04469296]
[1742904030314,0.05009804,142.29,142.26,0.04469296]
[1742904030617,7.07729804,142.29,142.26,7.07289296]
[1742904031318,7.07729804,142.29,142.26,0.04469296]
[1742904031319,0.05009804,142.29,142.26,0.04469296]
[1742904031915,0.05009804,142.29,142.27,7.0276]
[1742904032216,0.05009804,142.29,142.26,0.04469296]
[1742904033118,7.07719804,142.29,142.26,0.04469296]
[1742904034414,7.07719804,142.29,142.27,7.0277]
[1742904034415,0.05009804,142.29,142.27,7.0277]
[1742904034723,0.05009804,142.29,142.26,0.04469296]
[1742904035419,396.83369934,142.38,142.28,24.98]
[1742904035420,38.83369934,142.38,142.28,24.98]
[1742904036012,7.0233,142.37,142.34,7.0241]
[1742904036416,7.0233,142.37,142.28,24.98]
[1742904036417,45.85639934,142.38,142.35,7.024]
[1742904036618,0.04486826,142.37,142.35,7.024]
[1742904036922,0.04486826,142.37,142.34,0.05051383]
[1742904038320,7.024,142.35,142.34,0.05051383]
[1742904041625,0.04486826,142.37,142.34,0.05051383]
[1742904042123,7.06816826,142.37,142.34,7.07481383]
[1742904044723,0.04486826,142.37,142.34,0.05051383]
[1742904045323,7.024,142.35,142.34,0.05051383]
[1742904054328,7.0238,142.36,142.34,0.05051383]
[1742904054732,0.04486826,142.37,142.34,0.05051383]
[1742904054926,7.06816826,142.37,142.34,0.05051383]
[1742904055229,0.04486826,142.37,142.35,7.024]
[1742904055620,0.04486826,142.37,142.34,0.05051383]
[1742904056026,0.04486826,142.37,142.35,7.0238]
[1742904057332,0.04486826,142.37,142.36,7.0236]
[1742904059035,0.04486826,142.37,142.34,0.05051383]
[1742904059425,7.0236,142.36,142.34,0.05051383]
[1742904059833,0.04486826,142.37,142.34,0.05051383]
[1742904060330,7.06836826,142.37,142.34,7.07481383]
[1742904062336,7.06836826,142.37,142.35,7.024]
[1742904062538,0.04486826,142.37,142.34,0.05051383]
[1742904062937,0.04486826,142.37,142.36,7.0236]
[1742904065536,0.04486826,142.37,142.34,25.01051383]
[1742904068937,0.04486826,142.37,142.36,7.0236]
[1742904069539,0.04486826,142.37,142.34,25.01051383]
[1742904070734,0.04486826,142.37,142.34,0.05051383]
[1742904076948,0.04486826,142.37,142.36,7.0236]
[1742904078449,0.04486826,142.37,142.35,24.96]
[1742904078846,9.70842483,142.45,142.35,24.96]
[1742904079651,7.0206,142.42,142.35,24.96]
[1742904080153,0.05333415,142.4,142.39,7.0218]
[1742904081854,0.05333415,142.4,142.38,7.0223]
[1742904082248,0.05333415,142.4,142.37,0.04795759]
[1742904083054,7.0224,142.39,142.37,0.04795759]
[1742904083755,7.07513415,142.4,142.37,7.07095759]
[1742904084247,0.05333415,142.4,142.38,7.0225]
[1742904085454,0.05333415,142.4,142.39,7.0221]
[1742904089657,9.70842483,142.46,142.42,7.0203]
[1742904090355,38.83369934,142.49,142.42,7.0203]
[1742904090553,38.83369934,142.49,142.43,7.0201]
[1742904090855,38.83369934,142.49,142.36,24.96]
[1742904091054,0.0471358,142.47,142.45,0.04603158]
[1742904091251,0.04519447,142.47,142.45,0.04840282]
[1742904091856,7.06369447,142.47,142.45,0.04840282]
[1742904095357,7.06519447,142.47,142.35,231.78]
[1742904095554,13.05020808,142.48,142.35,231.78]
[1742904095953,13.05020808,142.48,142.4,7.0214]
[1742904095954,7.0203,142.43,142.4,7.0214]
[1742904096160,13.05020808,142.48,142.35,231.78]
[1742904096553,0.04882933,142.43,142.4,7.0660376]
[1742904097361,7.06892933,142.43,142.4,7.0660376]
[1742904098059,7.06892933,142.43,142.4,0.0449376]
[1742904098254,7.0206,142.42,142.4,0.0449376]
[1742904099158,0.04882933,142.43,142.4,0.0449376]
[1742904099663,0.04882933,142.43,142.4,7.0661376]
[1742904099867,0.04882933,142.43,142.4,0.0449376]
[1742904100160,0.04882933,142.43,142.41,7.0206]
[1742904100359,0.04882933,142.43,142.4,0.0449376]
[1742904101160,7.06912933,142.43,142.4,0.0449376]
[1742904101359,0.04882933,142.43,142.4,0.0449376]
[1742904101560,7.0211,142.41,142.4,0.0449376]
[1742904101758,0.04882933,142.43,142.35,231.78]
[1742904101958,13.05020808,142.44,142.35,231.78]
[1742904102164,13.05020808,142.44,142.3,24.94]
[1742904102563,7.0248,142.34,142.3,7.0265]
[1742904103065,0.05394659,142.33,142.32,7.0255]
[1742904103464,13.05020808,142.42,142.31,0.04631624]
[1742904103765,7.0238,142.36,142.32,7.0253]
[1742904103955,7.0238,142.36,142.35,0.04817013]
[1742904106667,7.0238,142.36,142.35,7.013e-05]
[1742904107666,7.0264,142.31,142.29,231.7]
[1742904107868,371.05020808,142.4,142.25,24.96]
[1742904108368,14.0445,142.39,142.26,7.0285]
[1742904108772,15.26756962,142.39,142.26,7.0285]
[1742904108972,0.04676235,142.34,142.31,0.05271162]
[1742904109271,7.0255,142.32,142.31,0.05271162]
[1742904109468,7.0255,142.32,142.31,1.162e-05]
[1742904109671,0.04676235,142.34,142.23,231.76]
[1742904109970,7.0286,142.26,142.23,231.76]
[1742904110772,7.07590725,142.26,142.23,238.83787392]
[1742904110972,7.07590725,142.26,142.23,231.80807392]
[1742904111465,0.04730725,142.26,142.23,231.80807392]
[1742904111972,7.0293,142.25,142.23,231.80807392]
[1742904112468,0.04730725,142.26,142.23,231.80807392]
[1742904112773,0.04730725,142.26,142.23,0.04807392]
[1742904114066,7.0295,142.24,142.23,0.04807392]
[1742904114264,0.04730725,142.26,142.12,231.84]
[1742904114469,13.05020808,142.28,142.13,24.96]
[1742904114671,371.05020808,142.3,142.13,24.96]
[1742904114871,358.0,142.3,142.13,38.01020808]
[1742904115075,358.0,142.3,142.16,24.96]
[1742904115267,7.0295,142.25,142.19,7.0316]
[1742904115468,0.04594563,142.24,142.22,0.05392712]
[1742904115671,7.0297,142.24,142.19,7.0319]
[1742904115968,7.07692997,142.24,142.22,0.05265707]
[1742904116468,0.04722997,142.24,142.22,0.05265707]
[1742904118173,7.07692997,142.24,142.22,0.05265707]
[1742904118675,7.03,142.23,142.22,0.05265707]
[1742904119175,0.04722997,142.24,142.22,0.05265707]
[1742904119377,7.03,142.23,142.22,0.05265707]
[1742904119773,0.04722997,142.24,142.17,7.0325]
[1742904119973,7.0308,142.22,142.17,7.0325]
[1742904120277,7.0308,142.22,142.12,256.82]
[1742904120878,0.05160862,142.18,142.17,7.0328]
[1742904121176,7.0308,142.22,142.17,7.0328]
[1742904121377,0.0533697,142.19,142.17,7.0328]
[1742904121568,7.031,142.21,142.17,7.0328]
[1742904121768,0.04621567,142.19,142.17,0.05129714]
[1742904122571,0.04621567,142.19,142.17,7.08399714]
[1742904122874,0.04621567,142.19,142.17,0.05129714]
[1742904123180,0.04621567,142.19,142.17,7.08419714]
[1742904124075,7.0324,142.18,142.17,0.05129714]
[1742904125579,7.0337,142.16,142.11,7.0358]
[1742904126083,7.0337,142.16,142.12,7.0354]
[1742904126378,13.05020808,142.22,142.09,7.0365]
[1742904126571,13.05020808,142.22,142.06,257.0]
[1742904126780,0.04975328,142.17,142.14,0.05092163]
[1742904127182,7.0339,142.15,142.14,0.05092163]
[1742904127486,0.04975328,142.17,142.14,0.05092163]
[1742904127985,7.08315328,142.17,142.14,0.05092163]
[1742904128174,0.04975328,142.17,142.14,0.05092163]
[1742904129482,7.0335,142.16,142.14,0.05092163]
[1742904130382,7.08285328,142.17,142.14,0.05092163]
[1742904130584,7.08285328,142.17,142.14,7.08532163]
[1742904130983,7.0339,142.15,142.14,0.05092163]
[1742904135488,7.0339,142.15,142.14,2.163e-05]
[1742904137383,7.04,142.15,142.0,257.12]
[1742904137683,13.05020808,142.16,142.0,257.12]
[1742904137883,7.0376,142.08,142.04,7.0393]
[1742904138096,14.068,142.15,142.0,257.12]
[1742904138386,7.0372,142.09,142.06,0.04550605]
[1742904138588,7.09077012,142.09,142.05,7.0386]
[1742904138787,0.04834734,142.09,142.06,0.04586225]
[1742904140493,7.08554734,142.09,142.06,0.04586225]
[1742904140992,0.04834734,142.09,142.06,0.04586225]
[1742904141487,7.08534734,142.09,142.06,0.04586225]
[1742904142394,0.04834734,142.09,142.06,7.08416225]
[1742904142790,0.04834734,142.09,142.06,0.04586225]
[1742904143191,0.04834734,142.09,142.0,232.12]
[1742904143391,371.05020808,142.14,142.0,232.12]
[1742904143392,14.0707,142.13,142.0,232.12]
[1742904143591,13.05020808,142.12,142.0,232.12]
[1742904144394,7.0394,142.04,142.0,232.12]
[1742904144596,358.0,142.13,142.0,232.12]
[1742904144597,358.0,142.13,142.05,0.04750927]
[1742904144894,0.05247649,142.03,142.0,232.12]
[1742904145092,358.0,142.13,142.04,7.0391]
[1742904145391,0.04660477,142.1,142.04,7.0391]
[1742904145604,0.04660477,142.1,142.07,0.04964437]
[1742904146095,7.0374,142.08,142.07,0.04964437]
[1742904148897,7.08320477,142.1,142.07,0.04964437]
[1742904149098,0.04660477,142.1,142.07,0.04964437]
[1742904150593,0.04660477,142.1,142.09,7.0369]
[1742904160709,396.83369934,142.19,142.13,7.0345]
[1742904160910,38.83369934,142.19,142.13,7.0345]
[1742904161111,45.86589934,142.19,142.09,257.2]
[1742904161311,45.86589934,142.19,142.12,25.0]
[1742904161607,16.74062483,142.19,142.12,25.0]
[1742904161809,0.04535572,142.17,142.16,7.033]
[1742904163411,0.04535572,142.17,142.15,7.0337]
[1742904164409,0.04535572,142.17,142.16,7.0334]
[1742904166712,0.04535572,142.17,142.15,7.0337]
[1742904166911,0.04535572,142.17,142.14,0.05401263]
[1742904167717,7.07855572,142.17,142.14,7.08821263]
[1742904168115,0.04535572,142.17,142.14,7.08821263]
[1742904168610,0.04535572,142.17,142.14,0.05401263]
[1742904169219,7.0339,142.15,142.14,0.05401263]
[1742904171021,7.0337,142.16,142.14,0.05401263]
[1742904173524,7.0339,142.15,142.14,0.05401263]
[1742904176324,7.0336,142.16,142.14,0.05401263]
[1742904176721,0.04535572,142.17,142.14,0.05401263]
[1742904176921,7.0339,142.15,142.14,0.05401263]
[1742904182428,7.07855572,142.17,142.14,0.05401263]
[1742904182630,0.04535572,142.17,142.14,0.05401263]
[1742904182924,0.04535572,142.17,142.16,7.0334]
[1742904188620,47.21080999,142.24,142.2,7.0311]
[1742904188825,9.70842483,142.24,142.16,24.98]
[1742904189330,9.70842483,142.24,142.13,8.37711065]
[1742904189331,9.70842483,142.24,142.23,7.03]
[1742904191033,9.70842483,142.24,142.22,7.07573666]
[1742904191233,0.0500954,142.25,142.22,0.04533666]
[1742904192031,7.03,142.23,142.22,0.04533666]
[1742904192232,0.0500954,142.25,142.22,0.04533666]
[1742904193330,7.0791954,142.25,142.22,0.04533666]
[1742904193635,0.0500954,142.25,142.22,0.04533666]
[1742904194841,7.0297,142.24,142.22,7.07573666]
[1742904195241,7.0297,142.24,142.22,0.04533666]
[1742904195741,7.0792954,142.25,142.22,7.07553666]
[1742904196037,7.0792954,142.25,142.22,0.04533666]
[1742904196340,0.0500954,142.25,142.23,7.0296]